bitfinex/quotes_ETHUSD_20260103
["timestamp","ask_amount","ask_price","bid_price","bid_amount"]
[1767400874955,5.45228369,3128.2,3127.6,2.48360128]
[1767400881055,2.25352213,3128.1,3127.6,1e-08]
[1767400881369,3.15622043,3128.1,3127.6,1e-08]
[1767400884280,6.35305579,3128.1,3127.6,1e-08]
[1767400885986,3.15622043,3128.1,3127.6,1e-08]
[1767400888391,3.15822043,3128.1,3127.6,1e-08]
[1767400890914,0.002,3128.1,3127.6,2.47570975]
[1767400891110,2.37979267,3128.8,3128.1,2.47470974]
[1767400891398,2.37979267,3128.8,3128.1,2.47270974]
[1767400892178,5.57591186,3128.8,3128.1,2.47270974]
[1767400893205,5.57591186,3128.8,3128.2,3.19672655]
[1767400893206,2.37979267,3128.8,3128.2,3.19672655]
[1767400894188,2.37979267,3128.8,3128.1,5.66950336]
[1767400895577,2.37979267,3128.8,3128.1,6.55614608]
[1767400895779,2.37979267,3128.8,3128.1,9.75297482]
[1767400896079,0.002,3128.8,3128.2,2.47570974]
[1767400896874,0.002,3128.8,3128.1,4.08343634]
[1767400897102,0.002,3128.8,3128.1,6.55914608]
[1767400897307,0.002,3128.8,3128.2,0.65591461]
[1767400897605,2.37779267,3128.7,3127.9,6.51171597]
[1767400897903,2.37779267,3128.7,3127.9,8.86974912]
[1767400898509,2.37779267,3128.7,3127.9,5.67271597]
[1767400898721,2.37779267,3128.7,3127.6,5.67297141]
[1767400899028,2.37779267,3128.5,3127.7,3.19722271]
[1767400899716,2.37779267,3128.4,3127.7,3.19722271]
[1767400900586,2.37779267,3128.4,3127.7,5.67293245]
[1767400904120,6.13174817,3128.6,3127.8,2.47570974]
[1767400905234,6.13174817,3128.6,3127.9,2.47570974]
[1767400905404,0.93279842,3128.5,3127.9,2.47570974]
[1767400905601,3.31059109,3128.5,3127.9,2.47570974]
[1767400905933,3.31059109,3128.5,3127.7,5.6729092]
[1767400906933,2.37779267,3128.4,3127.7,5.6729092]
[1767400907432,2.37779267,3128.4,3127.8,3.19711419]
[1767400908131,5.57432948,3128.4,3127.7,5.67292115]
[1767400909306,5.57432948,3128.4,3127.7,2.47570974]
[1767400909513,2.37779267,3128.3,3127.7,2.47570974]
[1767400909838,2.37779267,3128.3,3127.7,3.19723285]
[1767400911233,2.37779267,3128.2,3127.6,5.67302653]
[1767400912330,2.37779267,3128.2,3127.6,1e-08]
[1767400914239,2.37779267,3128.1,3127.6,1e-08]
[1767400917159,2.37779267,3128.0,3127.6,1e-08]
[1767400920763,2.25877622,3127.9,3127.6,1e-08]
[1767400923155,2.48465384,3127.9,3127.6,1e-08]
[1767400923359,0.65071279,3128.3,3127.6,2.38202677]
[1767400923360,2.90948901,3128.3,3127.6,2.38202677]
[1767400923566,5.45541102,3128.3,3127.6,2.38202677]
[1767400923870,2.25877622,3128.2,3127.6,2.38202677]
[1767400926171,2.25877622,3128.2,3127.6,5.57932454]
[1767400926373,2.26077622,3128.8,3128.1,2.38102676]
[1767400926575,5.45692665,3128.8,3128.1,2.38102676]
[1767400926776,2.25877622,3128.7,3128.1,2.38102676]
[1767400927153,0.002,3128.8,3128.1,2.38102676]
[1767400927359,0.002,3128.8,3128.1,2.61912944]
[1767400928073,0.002,3128.8,3128.2,3.19672655]
[1767400928274,2.26077622,3128.8,3128.2,3.19672655]
[1767400928575,2.26077622,3128.8,3128.1,5.81591576]
[1767400929667,2.26077622,3128.8,3128.2,0.90128352]
[1767400930342,2.26077622,3128.8,3128.2,4.09795607]
[1767400930743,2.25877622,3128.7,3128.0,3.1968726]
[1767400930943,2.25877622,3128.7,3127.9,3.19700382]
[1767400931159,2.25877622,3128.7,3127.8,3.19706239]
[1767400933384,2.25877622,3128.6,3127.6,8.77663209]
[1767400933555,2.25877622,3128.6,3127.7,0.87776321]
[1767400933760,2.25877622,3128.6,3127.7,3.25978997]
[1767400934816,2.25877622,3128.6,3127.8,2.38202676]
[1767400936692,2.25877622,3128.6,3128.0,3.19693094]
[1767400937274,2.25877622,3128.6,3128.0,6.39386188]
[1767400937479,2.48505384,3128.6,3128.0,3.19693094]
[1767400937865,0.002,3129.4,3128.1,0.03196828]
[1767400938201,0.002,3129.4,3128.4,2.38202676]
[1767400938407,2.26077622,3129.4,3128.3,3.57046209]
[1767400938561,2.26077622,3129.4,3128.4,2.38202676]
[1767400938763,2.26077622,3129.4,3128.6,2.38202676]
[1767400938992,2.26077622,3129.4,3128.7,2.38202676]
[1767400940900,0.002,3129.4,3128.9,2.38202676]
[1767400941402,0.841,3129.7,3129.1,2.38102676]
[1767400942208,3.09977622,3129.7,3129.1,2.38102676]
[1767400943088,3.09977622,3129.7,3129.2,3.19570497]
[1767400943461,0.002,3129.7,3129.3,2.38202676]
[1767400945289,0.002,3129.7,3129.3,5.57761467]
[1767400946196,0.002,3129.7,3129.3,2.38202676]
[1767400946502,0.002,3129.7,3129.3,5.57761365]
[1767400946708,0.002,3129.7,3129.4,2.38202676]
[1767400946896,2.26077622,3129.8,3129.3,4.16065397]
[1767400947209,0.002,3130.1,3129.3,9.73828358]
[1767400947372,2.25877622,3130.0,3129.3,9.73828358]
[1767400947572,0.002,3130.1,3129.5,2.38202676]
[1767400948793,0.002,3130.1,3129.6,3.19529652]
[1767400948975,0.002,3129.7,3129.6,3.19529652]
[1767400949175,0.002,3130.1,3129.5,5.57738458]
[1767400949497,2.47862318,3130.1,3129.5,5.57738458]
[1767400949705,2.47862318,3130.1,3129.5,2.38202676]
[1767400949996,2.47862318,3130.1,3129.5,3.1953827]
[1767400951502,2.47862318,3130.1,3129.5,4.19461876]
[1767400952503,2.47862318,3130.1,3129.5,0.99923606]
[1767400952715,2.47662318,3130.0,3129.4,3.19548918]
[1767400954300,2.47662318,3130.0,3129.5,0.03195398]
[1767400955103,2.47662318,3130.0,3129.4,8.6614948]
[1767400955304,2.47662318,3130.0,3129.4,5.46599407]
[1767400956304,2.47862318,3130.0,3129.4,5.46599407]
[1767400956602,2.47862318,3130.0,3129.4,6.41595043]
[1767400958186,2.47862318,3130.0,3129.4,9.61145116]
[1767400958583,0.002,3130.0,3129.4,9.61145116]
[1767400958782,0.002,3130.0,3129.5,2.30245887]
[1767400959708,0.002,3130.0,3129.5,2.27050489]
[1767400961611,0.002,3130.0,3129.6,3.19529652]
[1767400962285,0.002,3130.0,3129.6,8.69305089]
[1767400962481,0.002,3130.2,3129.7,2.27050489]
[1767400963610,0.002,3130.2,3129.7,2.30245683]
[1767400963788,0.002,3130.2,3129.9,2.26950489]
[1767400964313,0.002,3130.0,3129.9,2.26950489]
[1767400965609,0.002,3130.2,3129.9,5.46449514]
[1767400966714,0.002,3130.2,3129.9,2.26950489]
[1767400967105,0.002,3130.2,3129.9,5.46446903]
[1767400967416,0.002,3130.2,3129.9,2.26950489]
[1767400967796,0.002,3130.4,3130.0,2.27050489]
[1767400969212,0.002,3130.7,3130.2,2.27050489]
[1767400969920,0.002,3131.1,3130.4,2.27050489]
[1767400970427,3.19577581,3131.1,3130.4,2.27050489]
[1767400970720,0.002,3131.1,3130.4,2.27050489]
[1767400971218,0.002,3131.1,3130.4,5.46490324]
[1767400972009,2.47862318,3131.0,3130.4,2.27050489]
[1767400973183,2.47862318,3131.0,3130.2,5.46514586]
[1767400973423,2.47662318,3130.9,3130.2,3.19464097]
[1767400977025,2.47662318,3130.8,3130.2,3.19464097]
[1767400977527,2.47662318,3130.8,3130.0,3.19486678]
[1767400977688,2.47662318,3130.8,3129.7,2.27050489]
[1767400977689,2.47662318,3130.7,3129.7,2.27050489]
[1767400977892,2.47662318,3130.5,3129.8,3.19502229]
[1767400979333,2.47662318,3130.5,3129.6,2.27050489]
[1767400979517,2.47662318,3130.5,3129.7,3.1951879]
[1767400979825,2.3360949,3130.4,3129.7,3.1951879]
[1767400980729,2.3360949,3130.4,3129.7,5.58356998]
[1767400981025,2.3360949,3130.4,3129.7,6.29870397]
[1767400981690,2.3360949,3130.3,3129.7,6.29870397]
[1767400981895,2.3360949,3130.3,3129.7,3.91032189]
[1767400982112,0.002,3130.9,3129.8,2.38838208]
[1767400982328,2.3380949,3131.3,3130.4,2.38838208]
[1767400982505,5.53187575,3131.1,3130.4,2.38838208]
[1767400983431,2.3360949,3131.0,3130.2,0.838]
[1767400983654,2.3360949,3131.0,3130.2,3.22638208]
[1767400984130,2.3360949,3131.0,3130.3,5.58296406]
[1767400984325,5.52997018,3131.0,3130.3,5.58296406]
[1767400984505,2.3360949,3130.9,3130.3,5.58296406]
[1767400986214,2.3360949,3130.9,3130.3,6.54453698]
[1767400989944,2.3360949,3130.8,3130.1,0.001]
[1767400990847,2.3360949,3130.7,3130.1,0.001]
[1767400993044,2.3360949,3130.5,3130.1,0.001]
[1767400994452,3.19396978,3130.9,3130.1,2.38938208]
[1767400994616,0.40359698,3130.9,3130.3,2.38838208]
[1767400994950,0.002,3131.0,3130.3,2.38838208]
[1767400995838,0.002,3131.0,3130.3,5.58295736]
[1767400996439,0.002,3131.0,3130.4,2.38838208]
[1767400997053,0.002,3131.0,3130.6,2.38838208]
[1767401000759,0.002,3131.0,3130.4,2.38838208]
[1767401002754,2.3380949,3131.0,3130.4,2.38838208]
[1767401003846,5.53198409,3131.0,3130.4,2.38838208]
[1767401007261,2.3360949,3130.9,3130.3,0.001]
[1767401007558,2.3360949,3130.8,3130.3,0.001]
[1767401010056,5.53017663,3130.8,3130.4,0.001]
[1767401010857,2.3360949,3130.8,3130.4,0.001]
[1767401011359,5.53017699,3130.8,3130.4,0.001]
[1767401011758,6.49005912,3130.8,3130.4,0.001]
[1767401013030,2.41709934,3130.7,3130.4,0.001]
[1767401014934,5.6113029,3130.7,3130.4,0.001]
[1767401017070,4.15400115,3130.8,3130.4,0.001]
[1767401017560,0.95988213,3130.8,3130.4,0.001]
[1767401020470,3.19400893,3130.9,3130.4,0.001]
[1767401022443,4.03394977,3131.0,3130.4,2.42830059]
[1767401027844,9.64499888,3131.0,3130.4,2.42830059]
[1767401028470,2.41709934,3130.9,3130.4,0.001]
[1767401030276,2.41709934,3130.7,3130.1,0.001]
[1767401031461,2.41709934,3130.7,3130.4,0.001]
[1767401032843,3.19427585,3130.6,3130.4,0.001]
[1767401034373,0.96449989,3130.8,3130.4,2.42830059]
[1767401034573,3.19409706,3130.8,3130.4,2.42830059]
[1767401034873,3.19409706,3130.8,3130.4,2.42706369]
[1767401035657,3.19396978,3130.9,3130.4,2.42585396]
[1767401037178,6.38794041,3130.9,3130.4,2.42585396]
[1767401038282,6.38994041,3130.9,3130.4,2.42585396]
[1767401038453,3.19417382,3130.7,3130.4,2.42585396]
[1767401040077,4.15880913,3130.8,3130.4,2.42585396]
[1767401041680,7.35291428,3130.8,3130.3,0.001]
[1767401041873,2.40947353,3130.7,3130.3,0.001]
[1767401044769,2.40947353,3130.5,3130.0,0.001]
[1767401044971,2.96984847,3130.4,3130.0,0.001]
[1767401045487,2.96984847,3130.4,3130.3,0.001]
[1767401045888,2.96984847,3130.4,3129.8,2.25165176]
[1767401046785,2.96984847,3130.4,3129.8,5.44672362]
[1767401050298,0.56037494,3130.4,3129.9,2.25165176]
[1767401050610,3.19428956,3130.6,3129.9,2.25165176]
[1767401052498,3.19617382,3130.7,3130.0,2.25165176]
[1767401052698,0.002,3130.6,3130.0,2.25165176]
[1767401055508,0.002,3130.6,3130.1,2.25165176]
[1767401062800,0.002,3130.6,3129.8,3.19608458]
[1767401063015,0.88018212,3130.5,3129.9,2.25165176]
[1767401063698,0.88018212,3130.5,3129.9,5.44663883]
[1767401064214,0.88018212,3130.5,3129.9,2.25165176]
[1767401064706,0.88018212,3130.5,3129.9,5.44663712]
[1767401065206,0.88018212,3130.5,3130.0,2.25165176]
[1767401065510,3.19636348,3130.6,3130.0,2.25165176]
[1767401065699,0.002,3130.6,3130.0,2.25165176]
[1767401071595,0.002,3130.6,3130.0,5.44653959]
[1767401073116,0.002,3130.6,3130.1,2.47729066]
[1767401080500,0.002,3130.6,3130.1,2.47609492]
[1767401080822,0.88170732,3130.6,3130.1,2.47609492]
[1767401084721,0.88170732,3130.6,3130.2,2.47729066]
[1767401084921,0.002,3130.6,3130.2,2.47729066]
[1767401085498,0.002,3130.6,3130.0,2.47829066]
[1767401094234,0.002,3130.6,3130.0,5.67316801]
[1767401094444,0.002,3130.6,3130.1,2.47729066]
[1767401102807,2.37754125,3130.6,3130.0,0.001]
[1767401103012,2.8510495,3130.5,3130.0,0.001]
[1767401103207,2.37554125,3130.4,3129.8,0.001]
[1767401104640,1.31350825,3130.5,3129.8,0.001]
[1767401104641,2.37554125,3130.2,3129.8,0.001]
[1767401105244,3.19458198,3130.3,3129.8,0.001]
[1767401105553,3.19450174,3130.4,3129.8,2.51105499]
[1767401105840,3.19450174,3130.4,3129.8,2.47910407]
[1767401106211,3.19442134,3130.5,3129.8,2.47910407]
[1767401106639,3.19629643,3130.6,3129.8,2.47910407]
[1767401106841,3.19629643,3130.6,3129.9,2.47810407]
[1767401109345,3.19629643,3130.6,3130.0,2.47710407]
[1767401109660,0.002,3130.6,3130.0,2.47710407]
[1767401110152,0.002,3130.6,3130.0,3.36711624]
[1767401110352,0.002,3130.6,3130.0,0.89001217]
[1767401110644,0.002,3130.6,3130.1,2.47810407]
[1767401111721,0.002,3130.6,3130.2,2.47810407]
[1767401119355,2.37754125,3130.6,3129.9,0.001]
[1767401119538,2.37554125,3130.3,3129.8,0.001]
[1767401121960,2.37554125,3130.1,3129.8,0.001]
[1767401124965,5.57042742,3130.1,3129.8,0.001]
[1767401127668,8.76531359,3130.1,3129.8,0.001]
[1767401128061,5.57042742,3130.1,3129.8,0.001]
[1767401128360,0.87651268,3130.0,3129.8,0.001]
[1767401129872,3.19499025,3129.9,3129.8,0.001]
[1767401130365,4.0714386,3130.0,3129.8,0.001]
[1767401130867,0.87651268,3130.0,3129.8,0.001]
[1767401131068,2.38579591,3130.3,3129.8,0.001]
[1767401131235,3.43235574,3130.5,3129.8,2.32524843]
[1767401131435,0.002,3130.6,3130.0,2.32224843]
[1767401133372,0.002,3130.6,3130.1,2.32424843]
[1767401135958,0.002,3130.6,3130.2,2.32424843]
[1767401141250,0.002,3130.6,3130.3,2.32424843]
[1767401142255,0.002,3130.7,3130.5,2.32424843]
[1767401151078,0.002,3130.7,3130.2,2.32424843]
[1767401159501,2.46547368,3130.7,3130.0,2.33506622]
[1767401160404,2.46547368,3130.7,3130.0,5.52994574]
[1767401160570,2.46547368,3130.7,3130.0,6.40254893]
[1767401161074,2.46547368,3130.7,3130.1,2.33406622]
[1767401161699,2.46547368,3130.7,3130.1,5.52883423]
[1767401162508,2.46547368,3130.7,3130.1,2.33406622]
[1767401162674,0.002,3130.7,3130.1,2.33406622]
[1767401163199,3.19617921,3130.7,3130.1,2.33406622]
[1767401166501,0.002,3130.7,3130.2,2.33406622]
[1767401172895,3.43482856,3130.7,3130.0,5.52994863]
[1767401173102,3.43482856,3130.7,3130.0,2.33506622]
[1767401173410,3.43482856,3130.7,3130.0,5.52993208]
[1767401173576,2.46547368,3130.7,3130.1,2.33406622]
[1767401173983,2.46547368,3130.7,3130.1,2.33506622]
[1767401175194,3.19427585,3130.6,3130.1,2.33506622]
[1767401177909,2.46547368,3130.7,3130.1,2.33506622]
[1767401178090,2.46347368,3130.6,3130.1,0.001]
[1767401178297,2.46347368,3130.5,3130.1,0.001]
[1767401179413,0.64976475,3130.6,3130.1,0.001]
[1767401179586,0.002,3130.7,3130.1,2.36701408]
[1767401179787,0.002,3130.7,3130.2,2.33406622]
[1767401185410,0.002,3130.9,3130.3,2.33406622]
[1767401185609,0.002,3130.9,3130.3,2.36601203]
[1767401185910,0.002,3130.9,3130.5,2.33406622]
[1767401188938,0.002,3130.9,3130.6,2.48927483]
[1767401190443,0.002,3130.9,3130.6,5.68354236]
[1767401190733,0.002,3131.1,3130.7,2.38109608]
[1767401191093,0.002,3131.3,3130.9,2.38009608]
[1767401191304,0.002,3131.3,3130.9,2.61810569]
[1767401191719,0.002,3131.3,3130.9,5.81205066]
[1767401193044,0.002,3131.9,3131.4,2.38109608]
[1767401193860,0.002,3131.9,3131.5,2.38109608]
[1767401196123,0.002,3131.9,3131.5,5.57442702]
[1767401196340,0.002,3131.9,3131.6,0.5564427]
[1767401197333,0.002,3131.9,3131.6,2.93753878]
[1767401198321,0.002,3131.9,3131.6,2.38109608]
[1767401198645,0.002,3131.9,3131.4,2.38109608]
[1767401200707,0.002,3131.9,3131.5,2.38109608]
[1767401203810,0.002,3131.9,3131.2,2.38109608]
[1767401204009,0.002,3131.9,3131.2,6.41270395]
[1767401204240,0.002,3131.9,3131.3,0.64446416]
[1767401204818,0.002,3131.9,3131.3,3.83801862]
[1767401207831,0.002,3131.9,3131.3,6.2191147]
[1767401208854,0.002,3131.9,3131.4,2.38109608]
[1767401209938,0.002,3131.9,3131.4,5.57454994]
[1767401210117,0.002,3131.9,3131.5,0.62190141]
[1767401211139,0.002,3131.9,3131.5,6.19633207]
[1767401211343,0.002,3131.9,3131.5,3.00299749]
[1767401212659,0.002,3131.9,3131.5,6.19634493]
[1767401217245,0.002,3131.9,3131.6,2.38109608]
[1767401217552,0.002,3131.9,3131.7,0.61863449]
[1767401219344,0.002,3131.9,3131.6,2.38109608]
[1767401220354,0.002,3131.9,3131.6,5.5743424]
[1767401220653,0.002,3131.9,3131.6,2.38109608]
[1767401223577,0.002,3131.9,3131.5,3.81625681]
[1767401227238,0.002,3132.0,3131.5,7.00961462]
[1767401227438,0.002,3132.0,3131.6,0.93153885]
[1767401228157,0.002,3132.0,3131.6,4.12476461]
[1767401229759,2.29076519,3132.0,3131.6,4.12476461]
[1767401230259,0.002,3132.0,3131.6,4.12476461]
[1767401232961,0.002,3132.0,3131.6,0.93153885]
[1767401233265,2.29076519,3132.0,3131.5,3.19431468]
[1767401233633,0.002,3132.0,3131.6,3.19323402]
[1767401234761,0.002,3132.0,3131.5,3.194354]
[1767401235060,0.002,3132.0,3131.5,6.38771181]
[1767401235263,0.002,3132.0,3131.6,0.86934857]
[1767401236540,0.002,3132.0,3131.5,3.194354]
[1767401236860,2.29076519,3132.0,3131.5,0.001]
[1767401242175,2.28876519,3131.9,3131.5,0.001]
[1767401243948,2.28876519,3131.8,3131.5,0.001]
[1767401245077,3.19302881,3131.9,3131.5,0.001]
[1767401245269,6.34945567,3131.9,3131.5,0.001]
[1767401248001,2.32516907,3131.8,3131.5,0.001]
[1767401250076,0.86766167,3131.9,3131.5,0.001]
[1767401250274,2.3456039,3132.0,3131.5,0.001]
[1767401250777,5.53845305,3132.0,3131.5,0.001]
[1767401251602,2.3436039,3131.9,3131.5,0.001]
[1767401252109,5.53659597,3131.9,3131.5,0.001]
[1767401254703,2.3436039,3131.9,3131.5,0.001]
[1767401254911,0.002,3132.0,3131.5,2.35709787]
[1767401255280,0.002,3132.0,3131.6,2.35609787]
[1767401256808,0.002,3132.0,3131.7,3.19215387]
[1767401256979,0.002,3132.0,3131.6,5.54931128]
[1767401258181,0.002,3132.0,3131.5,0.001]
[1767401258381,0.002,3132.0,3131.6,3.19325446]
[1767401258780,0.002,3132.0,3131.6,5.54935233]
[1767401259000,0.002,3132.0,3131.7,2.35609787]
[1767401260322,0.838,3132.3,3131.9,2.35609787]
[1767401261616,6.37416121,3132.3,3131.6,5.54928966]
[1767401262412,6.37416121,3132.3,3131.7,2.35609787]
[1767401263030,0.838,3132.3,3131.7,5.54924383]
[1767401263190,0.838,3132.3,3131.8,2.35609787]
[1767401263714,4.03015732,3132.7,3131.8,2.91102225]
[1767401263916,4.03015732,3132.7,3131.8,2.35609787]
[1767401264118,6.37376122,3132.7,3131.8,2.35609787]
[1767401264694,3.1816039,3132.7,3131.8,2.35609787]
[1767401265217,2.3436039,3132.6,3131.8,2.35609787]
[1767401265409,2.3436039,3132.6,3131.9,2.91102225]
[1767401266318,2.3456039,3132.6,3131.9,2.91102225]
[1767401267191,5.5379238,3132.6,3131.9,2.91102225]
[1767401268219,5.5379238,3132.6,3132.0,2.35609787]
[1767401269825,5.5379238,3132.6,3131.9,3.74785413]
[1767401269826,2.3436039,3132.5,3131.9,0.55492438]
[1767401270029,2.3436039,3132.4,3131.5,2.35709787]
[1767401270401,0.63759238,3132.5,3131.5,0.001]
[1767401270402,2.3436039,3132.2,3131.5,0.001]
[1767401270624,2.3436039,3132.1,3131.5,0.001]
[1767401273029,3.19284802,3132.0,3131.5,0.001]
[1767401273229,7.3424239,3132.0,3131.5,0.001]
[1767401273523,9.6860278,3132.0,3131.5,0.001]
[1767401274238,6.49317978,3132.0,3131.5,0.001]
[1767401275428,4.14957588,3132.0,3131.5,0.001]
[1767401275729,0.002,3132.1,3131.5,2.38903144]
[1767401275897,3.19475531,3132.1,3131.5,2.38903144]
[1767401276306,0.002,3132.1,3131.5,2.35709787]
[1767401277565,0.002,3132.1,3131.6,2.35609787]
[1767401278525,0.002,3132.1,3131.7,2.35609787]
[1767401281356,0.002,3132.1,3131.5,2.33054751]
[1767401281836,5.55517499,3132.1,3131.5,2.33054751]
[1767401282038,2.36042891,3132.0,3131.5,0.001]
[1767401284065,3.19294996,3131.9,3131.5,0.001]
[1767401284367,4.06776245,3131.9,3131.5,0.001]
[1767401284970,0.87481249,3131.9,3131.5,0.001]
[1767401285268,5.55330348,3132.0,3131.5,0.001]
[1767401286970,0.002,3132.1,3131.5,2.33054751]
[1767401289074,6.38749216,3132.1,3131.5,2.33054751]
[1767401291886,2.36042891,3132.0,3131.5,0.001]
[1767401292585,2.36042891,3131.8,3131.5,0.001]
[1767401292759,2.36042891,3131.7,3131.0,3.19381214]
[1767401294691,2.36042891,3131.7,3131.0,2.32954751]
[1767401296184,4.06778137,3131.8,3131.0,2.32954751]
[1767401296362,5.55341442,3131.9,3131.0,2.32954751]
[1767401296761,2.36242891,3132.1,3131.2,2.32954751]
[1767401299664,5.55327693,3132.0,3131.2,2.32954751]
[1767401300188,3.19284802,3132.0,3131.2,2.32954751]
[1767401300383,2.36042891,3131.9,3131.2,2.32954751]
[1767401300690,2.36042891,3131.9,3131.2,5.52319101]
[1767401302295,5.55343604,3131.9,3131.3,2.32954751]
[1767401302493,6.42825646,3131.9,3131.3,2.32954751]
[1767401302902,6.42825646,3131.9,3131.0,0.001]
[1767401302903,2.36042891,3131.8,3131.0,0.001]
[1767401303408,2.36042891,3131.8,3131.0,2.33054751]
[1767401304205,4.06782755,3131.9,3131.0,2.33054751]
[1767401304567,3.19284802,3132.0,3131.2,2.32954751]
[1767401305607,2.36042891,3132.0,3131.2,5.52318524]
[1767401306481,0.002,3131.8,3131.2,5.52318524]
[1767401308449,0.002,3131.8,3131.3,2.30655163]
[1767401309119,0.002,3131.8,3131.4,2.30555163]
[1767401312733,0.002,3131.8,3131.4,5.49899961]
[1767401317462,0.002,3131.8,3131.4,2.30555163]
[1767401319747,2.41908665,3131.8,3131.0,0.001]
[1767401320059,2.41908665,3131.8,3131.1,3.1937202]
[1767401321149,2.41708665,3131.7,3131.1,3.1937202]
[1767401325768,2.41708665,3131.7,3131.0,5.97669071]
[1767401326154,2.41708665,3131.6,3131.0,5.97669071]
[1767401326471,2.41708665,3131.6,3131.0,3.52401443]
[1767401326667,5.61036034,3131.6,3131.0,0.001]
[1767401326860,2.41708665,3131.5,3131.0,0.001]
[1767401331157,5.61046324,3131.5,3131.0,0.001]
[1767401331359,2.41708665,3131.4,3131.0,0.001]
[1767401331581,3.29745875,3131.4,3131.0,0.001]
[1767401334479,6.49094889,3131.4,3131.0,0.001]
[1767401334653,2.41708665,3131.3,3131.0,0.001]
[1767401338677,0.002,3131.4,3131.0,0.001]
[1767401339251,3.19551428,3131.4,3131.0,0.001]
[1767401339559,4.0761029,3131.4,3131.0,0.001]
[1767401340180,0.88258862,3131.4,3131.0,0.001]
[1767401340483,0.002,3131.4,3131.0,2.27361706]
[1767401341579,2.342052,3131.4,3131.0,0.001]
[1767401343365,5.53361377,3131.3,3131.0,0.001]
[1767401347386,2.340052,3131.3,3131.0,0.001]
[1767401347686,5.5336864,3131.3,3131.0,0.001]
[1767401348386,2.340052,3131.3,3131.0,0.001]
[1767401348697,5.53363828,3131.3,3131.0,0.001]
[1767401350094,6.40653853,3131.3,3131.0,0.001]
[1767401351552,6.40653853,3131.3,3130.6,2.27261706]
[1767401351992,2.340052,3131.2,3130.4,2.27261706]
[1767401352158,2.340052,3131.0,3130.4,2.27261706]
[1767401354188,5.53396874,3131.0,3130.4,2.27261706]
[1767401354390,6.40673454,3131.0,3130.5,0.001]
[1767401362276,3.1938112,3131.1,3130.5,2.27361706]
[1767401362471,4.06649145,3131.3,3130.5,2.27361706]
[1767401362669,0.002,3131.4,3130.7,2.27261706]
[1767401363178,0.002,3131.4,3130.9,2.27161706]
[1767401366629,0.002,3131.4,3131.0,2.27261706]
[1767401371620,0.002,3131.4,3131.0,2.27361706]
[1767401381811,0.002,3131.4,3131.0,5.46748405]
[1767401382011,0.838,3131.5,3131.2,2.38615073]
[1767401382609,0.838,3131.5,3131.0,2.38715073]
[1767401384414,0.838,3131.5,3131.0,5.58099838]
[1767401387817,0.84,3131.5,3131.0,5.58099838]
[1767401391240,0.84,3131.5,3131.1,2.38615073]
[1767401391530,0.84,3131.5,3131.2,0.55809984]
[1767401391889,0.84,3131.5,3131.2,2.94425057]
[1767401392134,0.002,3131.5,3131.2,2.94425057]
[1767401393224,0.002,3131.5,3131.2,2.38615073]
[1767401393410,0.002,3131.5,3131.0,3.19483316]
[1767401393725,2.37463281,3131.8,3131.2,3.19364247]
[1767401393914,5.56740297,3132.1,3131.4,2.38615073]
[1767401395111,5.56740297,3132.1,3131.5,2.38615073]
[1767401395318,3.19477016,3132.1,3131.5,2.38615073]
[1767401395622,0.002,3132.1,3131.5,2.38615073]
[1767401398027,0.002,3132.1,3131.5,5.57950525]
[1767401398716,0.002,3132.1,3131.5,2.38615073]
[1767401400433,2.4299164,3132.1,3131.5,2.38615073]
[1767401401437,2.4299164,3132.1,3131.2,3.1936362]
[1767401401645,2.4279164,3132.0,3131.2,3.1936362]
[1767401401833,2.4279164,3132.0,3131.2,5.47685486]
[1767401402443,5.6207841,3132.0,3131.3,3.19355356]
[1767401403035,5.6207841,3132.0,3131.2,5.47684747]
[1767401403239,2.4279164,3131.9,3131.3,0.54768475]
[1767401406415,2.4279164,3131.8,3131.1,3.1946877]
[1767401409952,2.4279164,3131.8,3131.1,2.28421866]
[1767401410154,2.4279164,3131.7,3131.1,0.001]
[1767401411432,5.62109161,3131.7,3131.1,0.001]
[1767401413960,2.4279164,3131.7,3131.1,0.001]
[1767401414171,2.4279164,3131.7,3131.1,2.31615631]
[1767401414464,0.002,3131.8,3131.2,2.28321866]
[1767401415353,0.002,3131.8,3131.2,5.47686333]
[1767401416179,0.002,3131.8,3131.3,2.31515427]
[1767401416385,0.002,3131.8,3131.3,2.28321866]
[1767401416881,0.838,3132.0,3131.5,2.28321866]
[1767401419775,0.838,3132.0,3131.6,2.28221866]
[1767401420370,0.84,3132.0,3131.6,2.28221866]
[1767401422585,0.84,3132.0,3131.3,2.28321866]
[1767401422785,4.03285441,3132.0,3131.3,5.47674115]
[1767401424059,6.46077081,3132.0,3131.3,2.28321866]
[1767401424275,6.46077081,3132.0,3131.3,5.47677929]
[1767401427684,3.2679164,3132.0,3131.3,5.47677929]
[1767401427868,3.2679164,3132.0,3131.3,6.34392304]
[1767401428965,3.2679164,3132.0,3131.4,2.40321533]
[1767401429688,0.84,3132.0,3131.4,2.40321533]
[1767401429883,0.84,3132.0,3131.4,5.62859328]
[1767401430282,0.84,3132.0,3131.4,5.59665869]
[1767401431190,0.84,3132.0,3131.5,2.27664382]
[1767401431884,0.84,3132.0,3131.5,5.46997567]
[1767401432289,0.84,3132.0,3131.5,2.27664382]
[1767401432453,0.84,3132.0,3131.5,5.47000106]
[1767401433084,0.002,3132.0,3131.6,2.27664382]
[1767401434256,0.002,3132.0,3131.3,0.86714375]
[1767401434257,2.44682275,3132.0,3131.3,0.86714375]
[1767401434456,2.44682275,3132.0,3131.2,5.47021888]
[1767401435589,2.44682275,3132.0,3131.3,3.19355524]
[1767401436572,5.63971838,3132.0,3131.3,3.19455524]
[1767401436772,5.63971838,3132.0,3131.3,0.001]
[1767401438100,2.44682275,3132.0,3131.3,2.27764382]
[1767401439499,2.44682275,3132.0,3131.3,3.19449742]
[1767401439687,2.44682275,3132.0,3131.3,4.0610756]
[1767401440170,2.44682275,3132.0,3131.3,6.33771942]
[1767401440373,0.002,3132.0,3131.4,2.27664382]
[1767401441198,2.44682275,3132.0,3131.4,2.27664382]
[1767401442611,2.44682275,3132.0,3131.5,2.27664382]
[1767401442612,0.002,3132.0,3131.5,2.27664382]
[1767401442781,0.002,3132.0,3131.5,2.30857739]